Cogmind - Beta 10 @@@ ROGUE MODE // 2020.09.11 @ 04:53:31 // Winter2019/RPGLIKE Player: Torako Result: Destroyed by Striker with Compact Linear Accelerator Performance ------------- Evolutions (8) 4000 Regions Visited (30) 6000 Robots Destroyed (521) 2605 Value Destroyed (29823) 29823 Prototype IDs (44) 880 Alien Tech Used (4) 800 Bonus (18847) 18847 TOTAL SCORE: 62955 Bonus ------- Triggered Max Security 1000 High Alert Combat Kills 5634 Follower Combat Kills 4601 Entered Garrisons 1400 Used RIF Installer 3500 Network Hubs Disabled 200 Aligned with FarCom 300 Built Enhanced Grunts 300 A7 Reached Mainframe 300 Met R17 at Cetus 500 Found Hidden Lab 3000 Used Core Reset Matrix 3000 Scanned by Researcher 500 Friendly Fire -5388 Cogmind --------- Core Integrity 0/2350 Matter 189/550 Energy 52/750 System Corruption 1% Temperature Cool (10) Movement Hovering (122) Ox1 Location -2/Testing Parts ------- > --- POWER (4) -------- Particle Reactor Particle Reactor Light Particle Reactor Light Quantum Reactor > --- PROPULSION (5) --- Combat Airjet Combat Airjet Combat Airjet Improved Antigrav System Improved Antigrav System > --- UTILITY (8) ------ Advanced Core Analyzer EM Dispersion Field Improved Force Field > --- WEAPON (7) ------- EMDS Fusion Bomb Launcher Greatsword > --- INVENTORY (7) ---- Advanced Transmission Jammer Tachyon Dispersion Ray Potential Cannon Remote Datajack Peak State ------------ > --- POWER ------------ Particle Reactor Particle Reactor Light Particle Reactor Light Quantum Reactor > --- PROPULSION ------- Combat Airjet Combat Airjet Combat Airjet Improved Antigrav System Improved Antigrav System > --- UTILITY ---------- Advanced Core Analyzer Advanced Phase Shifter Damper Plating EM Dispersion Field Improved Force Field System Restoration Module > --- WEAPON ----------- Tachyon Dispersion Ray EMDS Potential Cannon Greatsword > --- INVENTORY -------- Advanced Transmission Jammer Transdimensional Reconstructor Enhanced Nova Cannon Enhanced Nova Cannon Fusion Bomb Launcher Remote Datajack [Rating: 181] Favorites ----------- Power Cooled Ion Engine Engine Cooled Ion Engine Power Core Light Nuclear Core Reactor Particle Reactor Propulsion Combat Airjet Wheel Armored Huge Wheel Hover Unit Combat Airjet Utility Relay Coupler [Grunt] Device Transmission Jammer Processor Advanced Core Analyzer Hackware Relay Coupler [Grunt] Protection Damper Plating Weapon Greatsword Energy Gun High-powered Shock Rifle Energy Cannon EMDS Ballistic Gun Assault Rifle Launcher Proton Missile Launcher Special Weapon Remote Datajack Impact Weapon Heavy Hammer Slashing Weapon Greatsword Special Melee Weapon Datajack Build | -11 -10 -10 -10 -9 -8 -8 -8 -8 -7 -7 -7 -7 -6 -6 -6 -6 -5 -5 -5 -5 -4 -4 -4 -4 -4 -3 -3 -3 -2 -2 ------- Run | Scr Mat Min Exi Min Mat Gar Mat Gar Fac Gar Fac Gar Fac Gar Fac Gar Fac Was Fac Gar Fac Ext Cet Arc Hub Res Arm Lab Res Tes Slots Evolved 20 | 4 2 . . . 2 . 1 . 2 1 . 1 . 1 . . . . 1 . 1 2 . . . 1 1 . . . Power 3 | . . . . . 2 . . . . . . . . . . . . . . . . . . . . . 1 . . . Propulsion 4 | 1 . . . . . . . . . . . 1 . . . . . . 1 . . . . . . 1 . . . . Utility 7 | 2 . . . . . . 1 . 2 . . . . 1 . . . . . . 1 . . . . . . . . . Weapon 6 | 1 2 . . . . . . . . 1 . . . . . . . . . . . 2 . . . . . . . . Parts Attached 189 | 8 11 . 1 1 25 6 9 1 15 9 3 8 2 4 8 1 1 6 1 8 8 6 . . 8 21 6 7 . 5 Power 22 | 1 . . . 1 5 . 3 . 1 1 . . . . 2 . . . . 3 . . . . . 4 1 . . . Engine 16 | 1 . . . 1 4 . 3 . 1 1 . . . . 2 . . . . 3 . . . . . . . . . . Core 1 | . . . . . 1 . . . . . . . . . . . . . . . . . . . . . . . . . Reactor 5 | . . . . . . . . . . . . . . . . . . . . . . . . . . 4 1 . . . Propulsion 14 | 2 . . . . 1 . . . . . . 3 . . . . . . 1 . . . . . . 7 . . . . Treads . | . . . . . . . . . . . . . . . . . . . . . . . . . . . . . . . Leg . | . . . . . . . . . . . . . . . . . . . . . . . . . . . . . . . Wheel 3 | 2 . . . . 1 . . . . . . . . . . . . . . . . . . . . . . . . . Hover 11 | . . . . . . . . . . . . 3 . . . . . . 1 . . . . . . 7 . . . . Flight . | . . . . . . . . . . . . . . . . . . . . . . . . . . . . . . . Utility 102 | 3 9 . 1 . 5 . 3 1 7 7 3 5 2 4 5 1 1 5 . 4 6 2 . . 6 9 4 5 . 4 Device 55 | 1 1 . . . 1 . 2 . 2 5 2 3 2 1 2 1 1 3 . 2 1 2 . . 5 6 4 4 . 4 Storage . | . . . . . . . . . . . . . . . . . . . . . . . . . . . . . . . Processor 10 | 2 1 . 1 . . . . . . 1 . . . . 1 . . . . . 1 . . . 1 2 . . . . Hackware 17 | . . . . . . . . . 4 1 1 1 . 3 2 . . 1 . 2 2 . . . . . . . . . Protection 20 | . 7 . . . 4 . 1 1 1 . . 1 . . . . . 1 . . 2 . . . . 1 . 1 . . Artifact . | . . . . . . . . . . . . . . . . . . . . . . . . . . . . . . . Weapon 51 | 2 2 . . . 14 6 3 . 7 1 . . . . 1 . . 1 . 1 2 4 . . 2 1 1 2 . 1 Energy Gun 8 | . . . . . 4 3 . . . . . . . . . . . . . . . . . . . . . 1 . . Energy Cannon 6 | . . . . . 4 . . . . . . . . . . . . . . . . . . . . 1 . 1 . . Ballistic Gun 18 | 2 2 . . . 5 2 3 . 2 . . . . . . . . . . . . . . . 1 . 1 . . . Ballistic Cannon . | . . . . . . . . . . . . . . . . . . . . . . . . . . . . . . . Launcher 2 | . . . . . . 1 . . . . . . . . . . . . . . . . . . . . . . . 1 Special Weapon 1 | . . . . . . . . . 1 . . . . . . . . . . . . . . . . . . . . . Impact Weapon 1 | . . . . . . . . . 1 . . . . . . . . . . . . . . . . . . . . . Slashing Weapon 14 | . . . . . 1 . . . 2 1 . . . . 1 . . 1 . 1 2 4 . . 1 . . . . . Piercing Weapon . | . . . . . . . . . . . . . . . . . . . . . . . . . . . . . . . Special Melee Weapon 1 | . . . . . . . . . 1 . . . . . . . . . . . . . . . . . . . . . Unidentified Prototypes 18 | . . . . . 4 . 1 . . . . . . . 1 . . 1 . . 2 . . . 4 1 . 4 . . Parts Lost 5 | . . . . . 1 . 1 . . . . . . . . . . . . 1 . . . . . . . . . 2 Power . | . . . . . . . . . . . . . . . . . . . . . . . . . . . . . . . Propulsion . | . . . . . . . . . . . . . . . . . . . . . . . . . . . . . . . Utility 4 | . . . . . 1 . 1 . . . . . . . . . . . . . . . . . . . . . . 2 Weapon 1 | . . . . . . . . . . . . . . . . . . . . 1 . . . . . . . . . . Highest Loss Streak 1 | . . . . . 1 . 1 . . . . . . . . . . . . 1 . . . . . . . . . 1 Average Slot Usage (%) 86 | . 98 100 100 100 88 91 87 92 86 85 87 86 93 92 92 94 94 85 83 81 84 85 86 86 84 81 82 80 79 75 Engine 13 | . 11 10 10 10 13 25 23 23 20 18 18 17 17 16 16 16 16 16 15 14 15 14 13 13 13 4 . . . . Reactor 2 | . . . . . . . . . . . . . . . . . . . . . . . . . . 8 14 16 16 16 Wheel 4 | . 22 20 20 20 9 8 7 7 6 6 6 5 . . . . . . . . . . . . . . . . . . Hover 11 | . . . . . . . . . . . . 1 17 16 16 16 16 16 18 21 20 19 18 18 18 19 20 20 20 20 Device 10 | . 3 . . . 5 8 10 15 19 18 23 23 22 18 10 11 11 6 5 5 . 4 9 9 8 7 11 14 16 14 Processor 2 | . 7 . 3 10 7 . . . . 2 . . . . . . . . . . . . . . . 6 4 4 4 4 Hackware 9 | . . . . . . . . . 7 9 11 6 5 14 25 27 27 18 15 15 24 20 13 13 13 6 4 . . . Protection 7 | . 22 30 26 20 14 16 13 15 8 6 1 4 5 2 . . . 3 5 5 4 4 4 4 4 4 4 4 4 4 Energy Gun 1 | . . . . . 7 19 2 . . . . . . . . . . . . . . . . . . . . 1 4 2 Energy Cannon 1 | . . . . . 5 . . . . . . . . . . . . . . . . . . . . 3 4 5 8 6 Ballistic Gun 5 | . 30 40 40 40 21 3 19 23 7 . . . . . . . . . . . . . . . . . . 2 . . Special Weapon 3 | . . . . . . . . . 3 6 6 5 5 5 5 5 5 5 5 5 5 4 4 4 4 4 3 . . . Slashing Weapon 11 | . . . . . 3 8 7 7 7 16 18 17 17 16 16 16 16 16 15 13 15 15 22 22 20 13 12 8 4 4 Naked Turns . | . . . . . . . . . . . . . . . . . . . . . . . . . . . . . . . Heaviest Build 192 | 10 20 18 18 19 50 56 56 52 54 62 60 61 61 61 49 48 48 86 86 92 85 99 99 99 100 138 166 185 185 192 Greatest Support 115 | 32 32 32 32 32 32 28 28 28 28 28 28 66 66 66 66 66 66 66 90 90 90 90 90 90 95 115 115 115 115 115 Greatest Overweight (x) 2 | . . . . . 1 1 1 1 1 2 2 2 . . . . . 1 1 1 . 1 1 1 1 1 1 1 1 1 Average Overweight (x) . | . . . . . . 1 1 1 1 1 1 1 . . . . . . . . . . 1 1 . . 1 1 1 1 Largest Inventory Capacity 7 | . . . . 4 4 6 6 7 7 7 7 7 7 7 7 7 7 7 7 7 7 7 7 7 7 7 7 7 7 7 Average Capacity 6 | . . . . 2 4 4 6 6 7 7 7 7 7 7 7 7 7 7 7 7 7 7 7 7 7 7 7 7 7 7 Most Carried 7 | . . . . 2 4 6 6 7 7 7 7 7 7 7 7 7 7 7 7 7 7 7 7 7 7 7 7 7 7 7 Average Carried 5 | . . . . 1 3 4 6 6 6 6 6 5 7 6 7 6 7 6 7 6 6 6 6 6 6 6 6 6 7 5 Final Capacity 7 | . . . . 4 4 6 6 7 7 7 7 7 7 7 7 7 7 7 7 7 7 7 7 7 7 7 7 7 7 7 Final Carried 7 | . . . . 2 3 6 6 7 7 6 7 7 7 7 7 7 7 7 7 7 7 5 6 7 7 7 7 7 7 5 Class Distribution -------------------- 29% | Bothacker-Gladiator 17% | Botlord-Gladiator 15% | Scavenger-Gladiator 13% | Gunner 4% | Tank 3% | Bothacker-Mutant 3% | Mutant 3% | Scavenger-Mutant Dominant Class ---------------- Tank | -10/Materials Gunner | -10/Mines Gunner | -10/Exiles Gunner | -9/Mines Gunner | -8/Materials Gunner | -8/Garrison Gunner | -8/Materials Hauler-Tank | -8/Garrison Bothacker-Gladiator | -7/Factory Bothacker-Gladiator | -7/Garrison Bothacker-Mutant | -7/Factory Bothacker-Gladiator | -7/Garrison Bothacker-Gladiator | -6/Factory Bothacker-Gladiator | -6/Garrison Botlord-Gladiator | -6/Factory Botlord-Mutant | -6/Garrison Botlord-Gladiator | -5/Factory Botlord-Gladiator | -5/Waste Botlord-Gladiator | -5/Factory Botlord-Gladiator | -5/Garrison Botlord-Gladiator | -4/Factory Botlord-Gladiator | -4/Extension Bothacker-Gladiator | -4/Cetus Bothacker-Gladiator | -4/Archives Bothacker-Gladiator | -4/Hub_04(d) Scavenger-Gladiator | -3/Research Scavenger-Gladiator | -3/Armory Scavenger-Gladiator | -3/Lab Scavenger-Mutant | -2/Research Scavenger-Mutant | -2/Testing Resources | -11 -10 -10 -10 -9 -8 -8 -8 -8 -7 -7 -7 -7 -6 -6 -6 -6 -5 -5 -5 -5 -4 -4 -4 -4 -4 -3 -3 -3 -2 -2 ----------- Run | Scr Mat Min Exi Min Mat Gar Mat Gar Fac Gar Fac Gar Fac Gar Fac Gar Fac Was Fac Gar Fac Ext Cet Arc Hub Res Arm Lab Res Tes Matter Collected 8122 | 334 575 26 220 54 824 266 451 434 386 177 28 172 20 115 125 10 45 . 165 211 87 40 25 . 98 1207 931 . 140 956 Remotely . | . . . . . . . . . . . . . . . . . . . . . . . . . . . . . . . Salvage Created 24191 | 138 779 18 . 40 1049 978 709 680 1289 714 . 394 199 977 1535 98 . . 457 476 645 735 155 . 3204 4033 2234 . 138 2517 Parts 1182 | 18 58 5 . 9 54 34 64 39 74 19 . 22 2 40 33 5 . 7 25 45 49 29 10 . 138 197 124 . 1 81 Haulers Intercepted 19 | . 2 . . . 3 . 3 . 2 . . . 1 . 3 . . . 2 . . 1 . . 1 1 . . . . Recyclers Shooed 1 | . . . . . . . . . . . . . . . . . . . 1 . . . . . . . . . . . Parts Field Recycled . | . . . . . . . . . . . . . . . . . . . . . . . . . . . . . . . Retrieved Matter . | . . . . . . . . . . . . . . . . . . . . . . . . . . . . . . . Parts Self-Destructed . | . . . . . . . . . . . . . . . . . . . . . . . . . . . . . . . Prevented . | . . . . . . . . . . . . . . . . . . . . . . . . . . . . . . . Kills | -11 -10 -10 -10 -9 -8 -8 -8 -8 -7 -7 -7 -7 -6 -6 -6 -6 -5 -5 -5 -5 -4 -4 -4 -4 -4 -3 -3 -3 -2 -2 ------- Run | Scr Mat Min Exi Min Mat Gar Mat Gar Fac Gar Fac Gar Fac Gar Fac Gar Fac Was Fac Gar Fac Ext Cet Arc Hub Res Arm Lab Res Tes Combat Hostiles Destroyed 419 | . 21 3 . 4 16 23 20 16 23 11 . 5 1 12 16 2 . 1 2 21 15 7 1 . 41 56 40 . 2 60 Melee 189 | . . . . . 4 . 4 . 16 11 . 5 1 12 16 2 . 1 2 21 15 7 1 . 41 21 8 . . 1 Guns 95 | . 21 3 . 4 10 19 14 16 7 . . . . . . . . . . . . . . . . . 1 . . . Cannons 42 | . . . . . 2 . . . . . . . . . . . . . . . . . . . . 14 16 . 1 9 AOE 43 | . . . . . . 1 . . . . . . . . . . . . . . . . . . . . . . . 42 Classes Destroyed 26 | 2 6 . . . 4 1 . . 1 . . 1 . 1 . . . 1 . . . . . . . . 2 . . 7 Worker 19 | . 3 . . . 2 . . . 5 . . . . . 4 . . . . . . . . . 3 2 . . . . Builder 4 | . . . . . 1 . . . . . . . . . . . . . . . 1 . . . 2 . . . . . Tunneler 7 | 4 . . . . . . 1 . . . . . . . . . . . 1 . . . . . 1 . . . . . Hauler 19 | . 2 . . . 3 . 3 . 2 . . . 1 . 3 . . . 2 . . 1 . . 1 1 . . . . Recycler 4 | 1 . . . . . . 1 . . . . . . . . . . . 1 . . . . . 1 . . . . . Mechanic 4 | . . . . . . . . . . . . . . . . . . . . . . . . . . . . . . 4 Operator 10 | . 2 . . . . . . . 1 . . . . . 2 . . . 1 . . . . . 1 2 1 . . . Watcher 19 | . 2 . . . 2 . 1 . 1 . . . . 1 1 . . . 2 . 1 2 . . 2 1 3 . . . Swarmer 54 | . 9 3 . 4 . 7 5 . 4 . . 1 . . . . . . . 5 5 . . . 4 . 7 . . . Saboteur 5 | . . . . . . . . . . . . . . . . . . . . . . . . . . . 3 . . 2 Grunt 171 | . 12 . . . 9 13 12 13 10 9 . . . 8 12 . . . . 8 1 4 . . 13 21 2 . 2 22 Brawler 3 | . . . . . . . . . . . . . . . . . . . . . . . . . . . . . . 3 Duelist 16 | . . . . . 1 1 . 1 1 . . 2 . . . . . . . 1 . . . . . 1 3 . . 5 Protector 7 | . . . . . . 1 . . . . . . . . . . . . . . . . . . 2 . . . . 4 Researcher 2 | . . . . . . . . . . . . . . . . . . . . . . . . . . . . . . 2 Sentry 68 | . . . . . 5 1 3 2 4 . . 1 1 4 4 2 . . 2 6 4 2 . . 8 10 5 . . 4 Demolisher 1 | . . . . . . . . . . . . . . . . . . . . . . . . . . . 1 . . . Specialist 9 | . . . . . . . . . . . . 1 . . . . . . . . . . . . . . 8 . . . Hunter 27 | . . . . . 1 . . . . 2 . . . 1 . . . . . . 2 2 . . 5 7 2 . . 5 Programmer 53 | . . . . . . . . . 4 . . . . 1 1 . . . . 1 3 . . . 6 17 8 . . 12 Behemoth 2 | . . . . . . . . . . . . . . 1 . . . . . . . . . . . . 1 . . . Compactor 1 | . . . . . . . . . . . . . . . . . . 1 . . . . . . . . . . . . Cetus Guard 1 | . . . . . . . . . . . . . . . . . . . . . . . 1 . . . . . . . Lightning 6 | . . . . . . . . . . . . . . . . . . . . . . . . . 6 . . . . . Investigator 1 | . . . . . . . . . . . . . . . . . . . . . . . . . . . . . . 1 Striker 1 | . . . . . . . . . . . . . . . . . . . . . . . . . . . . . . 1 Executioner 1 | . . . . . . . . . . . . . . . . . . . . . . . . . . . . . . 1 Alpha 7 1 | . . . . . . . . . . . . . . . . . . . . . . . . . . . . . . 1 Assembled 3 | . . . . . . . . . . . . . . . . . . . . . . . . . . . . . . 3 Best Kill Streak 37 | 4 5 3 . 4 5 4 5 5 4 2 . 1 1 2 5 2 . 1 2 5 4 2 1 . 4 4 8 . 2 37 Combat Bots Only 32 | . 4 3 . 4 4 4 5 5 3 2 . 1 1 2 4 2 . 1 1 5 4 2 1 . 4 4 8 . 2 32 Max Kills in Single Turn 5 | 2 2 1 . 1 2 1 2 1 2 1 . 1 1 1 1 1 . 1 1 1 1 1 1 . 3 2 2 . 1 5 Gunslinging 1 | . 1 . . . . . . . 1 . . . . . . . . . . . . . . . . . . . . . Exploded 4 | . . . . . . 1 . . . . . . . . . . . . . . . . . . . . . . . 4 Melee 1 | . . . . . 1 . 1 . 1 1 . 1 1 1 1 1 . 1 1 1 1 1 1 . 1 1 1 . . 1 Uniques/NPCs Destroyed 2 | . . . . . . . . . . . . . . . . . . . . . . . 2 . . . . . . . Revision 17 (-4/Cetus) A7 (-4/Cetus) Combat | -11 -10 -10 -10 -9 -8 -8 -8 -8 -7 -7 -7 -7 -6 -6 -6 -6 -5 -5 -5 -5 -4 -4 -4 -4 -4 -3 -3 -3 -2 -2 -------- Run | Scr Mat Min Exi Min Mat Gar Mat Gar Fac Gar Fac Gar Fac Gar Fac Gar Fac Was Fac Gar Fac Ext Cet Arc Hub Res Arm Lab Res Tes Damage Taken 22983 | . 1070 44 . 93 1114 970 669 289 1493 742 . 312 47 592 566 145 29 . 319 1983 1196 1232 112 252 2822 1785 732 . 26 4349 Core 13691 | . 722 29 . 51 771 612 452 202 996 504 . 214 22 390 445 103 21 . 218 1068 681 608 68 143 1453 934 412 . 15 2557 Absorbed by Shields 7896 | . . . . . . 30 34 111 576 443 . 325 53 498 607 159 31 . . 64 . 188 114 143 1469 374 562 . 26 2089 Redirected to Core 11773 | . 492 20 . 45 663 554 404 142 833 334 . 166 17 338 380 97 21 . 142 976 571 572 56 98 1313 903 380 . 15 2241 Core Remaining (%) 92 | 100 . . . 100 . . . 97 . . . 100 . . . 81 . . . 100 . . . . 61 . . 100 . . Volleys Fired 695 | 9 82 4 . 8 45 62 50 37 32 11 7 6 . 15 9 3 4 6 . 14 . . 1 . 4 104 85 . 4 93 Largest 4 | 2 4 4 . 4 4 3 3 3 3 1 1 1 . 1 1 1 1 1 . 1 . . 1 . 1 1 1 . 1 1 Hottest 276 | 40 80 80 . 80 276 180 120 75 78 30 30 30 . 30 30 30 30 30 . 30 . . 30 . 35 70 70 . 70 70 Shots Fired 1327 | 18 221 16 . 32 161 186 141 111 75 11 7 6 . 15 9 3 4 6 . 14 . . 1 . 4 104 85 . 4 93 Gun 944 | 18 221 16 . 32 141 186 141 111 65 . . . . . . . . . . . . . . . 2 . 11 . . . Cannon 257 | . . . . . 20 . . . . . . . . . . . . . . . . . . . . 104 74 . 4 55 Launcher 38 | . . . . . . . . . . . . . . . . . . . . . . . . . . . . . . 38 Special 88 | . . . . . . . . . 10 11 7 6 . 15 9 3 4 6 . 14 . . 1 . 2 . . . . . Kinetic 754 | 18 221 16 . 32 107 48 123 111 65 . . . . . . . . . . . . . . . 2 . 11 . . . Thermal 17 | . . . . . 17 . . . . . . . . . . . . . . . . . . . . . . . . . Explosive 38 | . . . . . . . . . . . . . . . . . . . . . . . . . . . . . . 38 Electromagnetic 430 | . . . . . 37 138 18 . . . . . . . . . . . . . . . . . . 104 74 . 4 55 Robot Hit Streak 31 | 3 7 4 . 7 12 18 26 29 31 14 3 5 . 16 22 4 1 7 . 12 . . 2 . 4 20 21 . 2 16 Robot Miss Streak 8 | 4 8 2 . 2 6 3 3 1 4 . 1 1 . . 2 . 1 . . 1 . . . . . 2 2 . 2 1 Penetration Max 1 | . . . . . . . . . . . . . . . . . . . . . . . . . . 1 1 . 1 1 Secondary Targets 17 | . 4 1 . . 2 4 2 3 1 . . . . . . . . . . . . . . . . . . . . . Max Gunslinging Chain 1 | . 1 1 . . 1 1 1 1 1 . . . . . . . . . . . . . . . . . . . . . Shots Hit Robots 1721 | 9 110 9 . 15 106 115 120 78 118 42 5 32 8 63 85 8 2 11 20 90 42 52 6 2 228 180 89 . 2 74 Core Hits 833 | 6 47 3 . 5 42 37 40 33 37 17 . 10 3 19 30 3 . 1 10 27 22 19 4 1 91 81 55 . 2 188 Critical Hits 108 | . 1 . . . 1 . 2 1 3 . . 2 1 2 2 1 . 1 1 2 2 4 . . 9 35 21 . 2 15 Critical Kills 35 | . . . . . . . 2 1 . . . . . 2 1 1 . . . 1 . 1 . . 6 9 6 . 1 4 Critical Parts Destroyed 53 | . 1 . . . 1 . . . 3 . . 2 1 . 1 . . . 1 1 2 3 . . 2 16 10 . 1 8 Melee Attacks 1147 | . . . . . 8 . 24 6 84 78 . 46 13 76 92 6 1 5 21 113 64 62 9 2 275 110 41 5 . 6 Impact 6 | . . . . . . . . . 6 . . . . . . . . . . . . . . . . . . . . . Slashing 1137 | . . . . . 8 . 24 6 74 78 . 46 13 76 92 6 1 5 21 113 64 62 9 2 275 110 41 5 . 6 Piercing . | . . . . . . . . . . . . . . . . . . . . . . . . . . . . . . . Sneak Attacks 94 | . . . . . 1 . 4 . 11 . . . 2 8 18 1 . 5 6 8 3 2 3 . 15 7 . . . . Combat Hostiles 25 | . . . . . . . . . . . . . . 4 2 1 . 5 . 8 1 . . . 3 1 . . . . Follow-up Attacks 205 | . . . . . . . . . 5 6 . 4 1 11 18 . . . 3 8 11 16 2 . 90 29 1 . . . Damage Inflicted 82128 | 143 1467 104 . 199 2102 2198 2539 1311 4621 1496 . 2302 556 3180 5471 381 . 391 1595 4717 2341 2658 480 108 12303 9466 4202 . 275 15522 Guns 9301 | 143 1467 104 . 199 1210 2096 1877 1311 834 . . . . . . . . . . . . . . . . . 60 . . . Cannons 10686 | . . . . . 410 . . . . . . . . . . . . . . . . . . . . 4342 3223 . 275 2436 Explosions 13390 | . . . . . 146 102 . . . . . . . . . . . . . . . . . . 265 53 . . . 12824 Melee 48722 | . . . . . 336 . 662 . 3787 1494 . 2302 556 3180 5471 381 . 391 1595 4717 2341 2646 480 108 12038 5071 919 . . 247 Ramming 29 | . . . . . . . . . . 2 . . . . . . . . . . . 12 . . . . . . . 15 Kinetic 6981 | 143 1467 104 . 199 790 464 1609 1311 834 . . . . . . . . . . . . . . . . . 60 . . . Thermal 750 | . . . . . 346 102 . . . . . . . . . . . . . . . . . . . 53 . . . 249 Explosive 12575 | . . . . . . . . . . . . . . . . . . . . . . . . . . . . . . 12575 Electromagnetic 13071 | . . . . . 630 1632 268 . . . . . . . . . . . . . . . . . 265 4342 3223 . 275 2436 Impact 67 | . . . . . . . . . 67 . . . . . . . . . . . . . . . . . . . . . Slashing 48655 | . . . . . 336 . 662 . 3720 1494 . 2302 556 3180 5471 381 . 391 1595 4717 2341 2646 480 108 12038 5071 919 . . 247 Piercing . | . . . . . . . . . . . . . . . . . . . . . . . . . . . . . . . Highest Corruption 10 | . . . . . . . . . 5 5 5 3 . . 1 1 . 10 10 10 . . . . 2 4 1 . . 1 Average Corruption 4 | . . . . . . . . . 2 5 4 2 . . 1 1 . 9 10 8 . . . . 1 2 1 . . 1 Corruption Purged 19 | . . . . . . . . . . . 2 3 . . . 1 . . . 6 . . . . . 5 2 . . . Effects 190 | . . . . . . . . . 24 45 11 1 . . 1 . . 10 25 57 . . . . 6 10 . . . . Message Errors 42 | . . . . . . . . . 6 12 5 . . . . . . 2 1 10 . . . . 2 4 . . . . Matter Fused 30 | . . . . . . . . . 1 7 1 . . . . . . 2 8 8 . . . . . 3 . . . . Heat Flow Errors 24 | . . . . . . . . . 2 7 1 . . . . . . 2 3 9 . . . . . . . . . . Energy Discharges 26 | . . . . . . . . . 6 6 3 1 . . . . . 2 2 3 . . . . 1 2 . . . . Parts Rejected 5 | . . . . . . . . . . 2 . . . . . . . . . 3 . . . . . . . . . . Data Loss (minor) 18 | . . . . . . . . . 3 4 1 . . . 1 . . 1 1 4 . . . . 2 1 . . . . Data Loss (major) 1 | . . . . . . . . . . 1 . . . . . . . . . . . . . . . . . . . . Alerts 1 | . . . . . . . . . . . . . . . . . . . 1 . . . . . . . . . . . Misdirections 11 | . . . . . . . . . . . . . . . . . . . 7 4 . . . . . . . . . . Targeting Errors 31 | . . . . . . . . . 5 6 . . . . . . . 1 2 16 . . . . 1 . . . . . Weapon Failures 1 | . . . . . . . . . 1 . . . . . . . . . . . . . . . . . . . . . Overload Shots . | . . . . . . . . . . . . . . . . . . . . . . . . . . . . . . . Overflow Damage 5364 | . . . . . 111 . 66 . 414 60 . 315 41 255 1196 31 . . 340 467 50 100 . . 834 612 61 . . 411 Projectiles 242 | . . . . . 50 . . . . . . . . . . . . . . . . . . . . 144 47 . . 1 Explosions 443 | . . . . . 2 . . . . . . . . . . . . . . . . . . . 31 . . . . 410 Melee 4679 | . . . . . 59 . 66 . 414 60 . 315 41 255 1196 31 . . 340 467 50 100 . . 803 468 14 . . . Knockbacks . | . . . . . . . . . . . . . . . . . . . . . . . . . . . . . . . Impact . | . . . . . . . . . . . . . . . . . . . . . . . . . . . . . . . Kinetic . | . . . . . . . . . . . . . . . . . . . . . . . . . . . . . . . Secondary . | . . . . . . . . . . . . . . . . . . . . . . . . . . . . . . . Self-Inflicted Damage 773 | . . . . . 40 103 . . . 1 . . . . . . . . . . . 6 . . 9 . . . . 614 Shots 15 | . . . . . 2 2 . . . . . . . . . . . . . . . . . . 1 . . . . 10 Rammed 3 | . . . . . . . . . . 1 . . . . . . . . . . . 1 . . . . . . . 1 Targets Rammed 3 | . . . . . . . . . . 1 . . . . . . . . . . . 1 . . . . . . . 1 Kicked . | . . . . . . . . . . . . . . . . . . . . . . . . . . . . . . . Crushed . | . . . . . . . . . . . . . . . . . . . . . . . . . . . . . . . Highest Temperature 397 | 6 254 64 . 162 353 397 . . 208 176 16 . . . . . . 144 220 219 . . . . . 8 . . . . Average Temperature 100 | 6 91 27 . 77 84 167 . . 97 78 16 . . . . . . 76 93 103 . . . . . 8 . . . . Received Heat Transfer 4181 | . 330 . . . 459 168 291 168 309 204 . 28 8 85 209 24 . . 63 460 126 248 8 25 390 172 37 . 8 361 Effects 3 | . . . . . . 3 . . . . . . . . . . . . . . . . . . . . . . . . Shutdowns 2 | . . . . . . 2 . . . . . . . . . . . . . . . . . . . . . . . . Energy Bleed 1 | . . . . . . 1 . . . . . . . . . . . . . . . . . . . . . . . . Siege Activations . | . . . . . . . . . . . . . . . . . . . . . . . . . . . . . . . Robots Corrupted 53 | . . . . . . 3 2 . . . . . . . . . . . . . . . . . . 23 15 . 1 9 Combat Hostiles 50 | . . . . . . 3 2 . . . . . . . . . . . . . . . . . . 21 15 . 1 8 Parts Fried 131 | . . . . . 4 10 2 . . . . . . . . . . . . . . . . . 4 47 25 . 6 33 Impact Corruptions . | . . . . . . . . . . . . . . . . . . . . . . . . . . . . . . . Robots Melted . | . . . . . . . . . . . . . . . . . . . . . . . . . . . . . . . Combat Hostiles . | . . . . . . . . . . . . . . . . . . . . . . . . . . . . . . . Parts Melted 6 | . . . . . . . . . . . . . . 1 1 . . . . . 1 . . . . . 3 . . . Heat Transferred 945 | . . . . . 620 150 . . . . . . . . . . . . . . . . . . . 50 . . . 125 Parts Sabotaged 3 | . . . . . . . . . . . . . . . . . . . . . . . . . . . . . . 3 Parts Stolen . | . . . . . . . . . . . . . . . . . . . . . . . . . . . . . . . Parts Stripped . | . . . . . . . . . . . . . . . . . . . . . . . . . . . . . . . Power Chain Reactions 8 | . . . . . 3 2 . . . . . . . . . . . . . . . . . . . 1 . . . 2 Missiles Intercepted . | . . . . . . . . . . . . . . . . . . . . . . . . . . . . . . . Alert | -11 -10 -10 -10 -9 -8 -8 -8 -8 -7 -7 -7 -7 -6 -6 -6 -6 -5 -5 -5 -5 -4 -4 -4 -4 -4 -3 -3 -3 -2 -2 ------- Run | Scr Mat Min Exi Min Mat Gar Mat Gar Fac Gar Fac Gar Fac Gar Fac Gar Fac Was Fac Gar Fac Ext Cet Arc Hub Res Arm Lab Res Tes Peak Influence 3932 | 25 317 193 . 90 360 1144 741 1003 714 892 517 692 433 1130 604 142 94 24 119 332 425 415 156 80 278 437 303 . 40 3932 Initial 592 | . 16 123 . . 2 189 557 462 526 203 468 221 363 303 592 74 74 24 2 42 174 147 4 . 28 128 210 . . 22 Average 348 | 11 160 175 . 10 198 701 635 733 266 559 459 535 399 704 111 121 65 7 47 163 257 241 96 59 131 169 134 . 5 2574 Maximum Alert Level 5 | . 1 . . . 1 4 3 3 3 3 2 2 2 4 2 . . . . 1 2 2 . . 1 2 1 . . 5 Low Security (%) 48 | 100 52 100 . 100 49 5 . . 56 . . . . . 91 100 100 100 100 62 33 30 100 100 81 69 61 . 100 . Level 1 22 | . 47 . . . 50 20 . . 11 29 20 10 53 13 . . . . . 37 53 63 . . 18 26 38 . . . Level 2 18 | . . . . . . 24 90 43 31 44 79 89 46 37 8 . . . . . 12 5 . . . 3 . . . . Level 3 6 | . . . . . . 34 9 56 . 25 . . . 43 . . . . . . . . . . . . . . . . Level 4 . | . . . . . . 13 . . . . . . . 5 . . . . . . . . . . . . . . . . Level 5 . | . . . . . . . . . . . . . . . . . . . . . . . . . . . . . . . High Security . | . . . . . . . . . . . . . . . . . . . . . . . . . . . . . . . Max Security 2 | . . . . . . . . . . . . . . . . . . . . . . . . . . . . . . 99 Squads Dispatched 89 | . 3 . . . 4 . 2 . 8 . . . 1 . 8 . 2 . 2 . 2 2 . . 10 8 3 . . 34 Investigation 12 | . 2 . . . . . 1 . 4 . . . . . 1 . 1 . 1 . . 2 . . . . . . . . Extermination 21 | . . . . . . . . . 3 . . . 1 . 2 . . . . . 2 . . . 4 6 3 . . . Reinforcement 19 | . 1 . . . 1 . . . 1 . . . . . 5 . 1 . 1 . . . . . 5 1 . . . 3 Assault 33 | . . . . . . . 1 . . . . . . . . . . . . . . . . . . 1 . . . 31 Garrison 4 | . . . . . 3 . . . . . . . . . . . . . . . . . . . 1 . . . . . Intercept . | . . . . . . . . . . . . . . . . . . . . . . . . . . . . . . . Construction Impeded 2 | . . . . . . . . . . . . . . . . . 1 . . . . . . . 1 . . . . . Haulers Reinforced 2 | . . . . . . . . . . . . . . . 1 . . . . . . . . . 1 . . . . . Stealth | -11 -10 -10 -10 -9 -8 -8 -8 -8 -7 -7 -7 -7 -6 -6 -6 -6 -5 -5 -5 -5 -4 -4 -4 -4 -4 -3 -3 -3 -2 -2 --------- Run | Scr Mat Min Exi Min Mat Gar Mat Gar Fac Gar Fac Gar Fac Gar Fac Gar Fac Was Fac Gar Fac Ext Cet Arc Hub Res Arm Lab Res Tes Distress Signals 26 | . 1 . . . 2 . 1 . 2 . . . . 1 2 . . . 2 . 2 2 2 . 4 4 1 . . . Communications Jammed 215 | . . . . . 42 2 10 . 4 . . . . 3 . . . . . . . . . . 68 63 9 . . 14 Distress Signals 213 | . . . . . 42 2 10 . 2 . . . . 3 . . . . . . . . . . 68 63 9 . . 14 Times Spotted 826 | . 29 3 . 6 28 27 30 14 56 23 4 28 2 30 39 6 4 3 11 48 27 33 14 4 67 84 50 . 4 152 Peak Tracking Total 33 | . 4 3 . 4 4 5 5 3 5 3 3 6 1 4 6 4 4 1 5 8 6 6 5 2 9 6 5 . 4 33 Tactical Retreats 60 | . 1 . . . . 5 2 . 7 2 . 1 . 1 8 . . . 2 7 2 . . . 5 13 2 . 1 1 Traps | -11 -10 -10 -10 -9 -8 -8 -8 -8 -7 -7 -7 -7 -6 -6 -6 -6 -5 -5 -5 -5 -4 -4 -4 -4 -4 -3 -3 -3 -2 -2 ------- Run | Scr Mat Min Exi Min Mat Gar Mat Gar Fac Gar Fac Gar Fac Gar Fac Gar Fac Was Fac Gar Fac Ext Cet Arc Hub Res Arm Lab Res Tes Traps Triggered 81 | . . . . . 1 14 . 9 8 10 . 3 . 10 1 3 1 . . 5 . 5 . . 2 3 5 . 1 . Indirectly . | . . . . . . . . . . . . . . . . . . . . . . . . . . . . . . . Trap Hack Attempts . | . . . . . . . . . . . . . . . . . . . . . . . . . . . . . . . Triggered . | . . . . . . . . . . . . . . . . . . . . . . . . . . . . . . . Disarmed 6 | . 6 . . . . . . . . . . . . . . . . . . . . . . . . . . . . . Reprogrammed . | . . . . . . . . . . . . . . . . . . . . . . . . . . . . . . . Reused . | . . . . . . . . . . . . . . . . . . . . . . . . . . . . . . . Traps Extracted . | . . . . . . . . . . . . . . . . . . . . . . . . . . . . . . . Installed . | . . . . . . . . . . . . . . . . . . . . . . . . . . . . . . . Triggered 2 | . . . . . 1 . 1 . . . . . . . . . . . . . . . . . . . . . . . Machines | -11 -10 -10 -10 -9 -8 -8 -8 -8 -7 -7 -7 -7 -6 -6 -6 -6 -5 -5 -5 -5 -4 -4 -4 -4 -4 -3 -3 -3 -2 -2 ---------- Run | Scr Mat Min Exi Min Mat Gar Mat Gar Fac Gar Fac Gar Fac Gar Fac Gar Fac Was Fac Gar Fac Ext Cet Arc Hub Res Arm Lab Res Tes Machines Disabled 52 | . . . . . 2 7 . 3 . 8 . 1 . 3 . 1 . . . 3 . 1 1 3 5 4 2 1 . 7 Max in Single Turn 5 | . . . . . 1 2 . 1 . 1 . 1 . 1 . 1 . . . 1 . . . . 5 1 1 1 . 1 Garrison Access 2 | . . . . . . . . . . . . . . . . . . . . . . . . . 1 . . . . 1 Garrison Relay 18 | . . . . . . 3 . 3 . 4 . 1 . 3 . 1 . . . 3 . . . . . . . . . . Phase Generator 1 | . . . . . . 1 . . . . . . . . . . . . . . . . . . . . . . . . Network Hub 1 | . . . . . . . . . . . . . . . . . . . . . . . . . 1 . . . . . Energy Cycler 1 | . . . . . . . . . . . . . . . . . . . . . . . . . . . 1 . . . Machines Sabotaged . | . . . . . . . . . . . . . . . . . . . . . . . . . . . . . . . Garrisons Compromised . | . . . . . . . . . . . . . . . . . . . . . . . . . . . . . . . Overloaded Fab Kills . | . . . . . . . . . . . . . . . . . . . . . . . . . . . . . . . Fab Network Shutdowns 1 | . . . . . . . . . . . . . . . . . . . . . 1 . . . . . . . . . Hacking | -11 -10 -10 -10 -9 -8 -8 -8 -8 -7 -7 -7 -7 -6 -6 -6 -6 -5 -5 -5 -5 -4 -4 -4 -4 -4 -3 -3 -3 -2 -2 --------- Run | Scr Mat Min Exi Min Mat Gar Mat Gar Fac Gar Fac Gar Fac Gar Fac Gar Fac Was Fac Gar Fac Ext Cet Arc Hub Res Arm Lab Res Tes Machines Accessed 83 | . 8 . 1 1 3 . 5 . 13 . 1 . 3 . 5 . 1 . 3 . 5 14 3 . 7 3 5 2 . . Terminals 66 | . 7 . . 1 2 . 4 . 11 . . . 1 . 4 . 1 . 2 . 4 14 3 . 6 3 3 . . . Fabricators 5 | . . . . . . . . . 1 . . . 1 . . . . . . . 1 . . . . . 2 . . . Repair Stations . | . . . . . . . . . . . . . . . . . . . . . . . . . . . . . . . Recycling Units 1 | . 1 . . . . . . . . . . . . . . . . . . . . . . . . . . . . . Scanalyzers . | . . . . . . . . . . . . . . . . . . . . . . . . . . . . . . . Garrison Access 8 | . . . . . 1 . 1 . 1 . 1 . 1 . 1 . . . 1 . . . . . 1 . . . . . Total Hacks 199 | . 27 . 1 3 7 . 14 . 30 . 2 . 6 . 10 . 1 . 6 . 11 26 7 . 8 7 14 19 . . Successful 125 | . 24 . 1 2 4 . 5 . 15 . 2 . 1 . 5 . 1 . 4 . 8 15 4 . 4 4 7 19 . . Failed 74 | . 3 . . 1 3 . 9 . 15 . . . 5 . 5 . . . 2 . 3 11 3 . 4 3 7 . . . Catastrophic 16 | . 1 . . . . . 1 . 5 . . . 2 . 1 . . . 1 . . 2 . . 2 1 . . . . Database Lockouts . | . . . . . . . . . . . . . . . . . . . . . . . . . . . . . . . Manual 102 | . 22 . 1 3 4 . 10 . 17 . . . 2 . 8 . 1 . 5 . 4 11 1 . 7 2 4 . . . Terminals 150 | . 25 . . 3 4 . 13 . 23 . . . 2 . 9 . 1 . 5 . 9 26 7 . 7 7 9 . . . Fabricators 15 | . . . . . . . . . 5 . . . 3 . . . . . . . 2 . . . . . 5 . . . Repair Stations . | . . . . . . . . . . . . . . . . . . . . . . . . . . . . . . . Recycling Units 2 | . 2 . . . . . . . . . . . . . . . . . . . . . . . . . . . . . Scanalyzers . | . . . . . . . . . . . . . . . . . . . . . . . . . . . . . . . Garrison Access 12 | . . . . . 3 . 1 . 2 . 2 . 1 . 1 . . . 1 . . . . . 1 . . . . . Terminal Hacks 69 | . 12 . 1 2 1 . 1 . 4 . . . . . 1 . . . 1 . 4 13 4 . . 3 3 19 . . Record 25 | . . . . . . . . . . . . . . . . . . . . . . 1 3 . . 2 . 19 . . Part Schematic 4 | . . . . . . . . . 1 . . . . . . . . . 1 . . 1 . . . . 1 . . . Robot Analysis 3 | . 2 . . . . . . . 1 . . . . . . . . . . . . . . . . . . . . . Open Door 11 | . . . . . . . . . . . . . . . . . . . . . 1 8 1 . . . 1 . . . Branch Access Points 2 | . . . . . . . . . . . . . . . . . . . . . 1 . . . . 1 . . . . Terminal Index 3 | . 1 . . . 1 . . . 1 . . . . . . . . . . . . . . . . . . . . . Fabricator Index 1 | . . . . . . . . . . . . . . . . . . . . . 1 . . . . . . . . . Recycling Unit Index 1 | . 1 . . . . . . . . . . . . . . . . . . . . . . . . . . . . . Alert Level 2 | . 1 . . . . . . . . . . . . . . . . . . . . 1 . . . . . . . . Unreport Threat 10 | . 1 . . 2 . . 1 . 1 . . . . . 1 . . . . . 1 2 . . . . 1 . . . Locate Traps 1 | . 1 . . . . . . . . . . . . . . . . . . . . . . . . . . . . . Disarm Traps 2 | . 2 . . . . . . . . . . . . . . . . . . . . . . . . . . . . . Dispatch Records 1 | . 1 . . . . . . . . . . . . . . . . . . . . . . . . . . . . . Patrol Status 1 | . 1 . . . . . . . . . . . . . . . . . . . . . . . . . . . . . Zone Layout 1 | . 1 . . . . . . . . . . . . . . . . . . . . . . . . . . . . . EX-Prototype ID Bank 1 | . . . 1 . . . . . . . . . . . . . . . . . . . . . . . . . . . Fabricator Hacks 8 | . . . . . . . . . 2 . . . . . . . . . . . 2 . . . . . 4 . . . Load Schematic 4 | . . . . . . . . . 1 . . . . . . . . . . . 1 . . . . . 2 . . . Build 4 | . . . . . . . . . 1 . . . . . . . . . . . 1 . . . . . 2 . . . Repair Station Hacks . | . . . . . . . . . . . . . . . . . . . . . . . . . . . . . . . Recycling Unit Hacks 1 | . 1 . . . . . . . . . . . . . . . . . . . . . . . . . . . . . Report Inventory 1 | . 1 . . . . . . . . . . . . . . . . . . . . . . . . . . . . . Scanalyzer . | . . . . . . . . . . . . . . . . . . . . . . . . . . . . . . . Garrison Access Hacks 10 | . . . . . 1 . 1 . 2 . 2 . 1 . 1 . . . 1 . . . . . 1 . . . . . Unlock Access 7 | . . . . . 1 . 1 . 1 . 1 . 1 . 1 . . . 1 . . . . . . . . . . . Seal Access 1 | . . . . . . . . . . . . . . . . . . . . . . . . . 1 . . . . . Coupler Status 2 | . . . . . . . . . 1 . 1 . . . . . . . . . . . . . . . . . . . Unauthorized Hacks 37 | . 11 . . . 2 . 3 . 7 . . . . . 3 . 1 . 2 . 2 2 . . 3 1 . . . . Terminals 36 | . 10 . . . 2 . 3 . 7 . . . . . 3 . 1 . 2 . 2 2 . . 3 1 . . . . Track 6 | . 2 . . . 1 . . . . . . . . . . . . . . . . . . . 3 . . . . . Assimilate 1 | . . . . . . . . . . . . . . . 1 . . . . . . . . . . . . . . . Botnet 22 | . 6 . . . 1 . 2 . 4 . . . . . 2 . 1 . 2 . 2 1 . . . 1 . . . . Disrupt 2 | . 1 . . . . . . . . . . . . . . . . . . . . 1 . . . . . . . . Operators 2 | . . . . . . . 1 . 1 . . . . . . . . . . . . . . . . . . . . . Search 3 | . 1 . . . . . . . 2 . . . . . . . . . . . . . . . . . . . . . Fabricators . | . . . . . . . . . . . . . . . . . . . . . . . . . . . . . . . Repair Stations . | . . . . . . . . . . . . . . . . . . . . . . . . . . . . . . . Recycling Units 1 | . 1 . . . . . . . . . . . . . . . . . . . . . . . . . . . . . Tunnel 1 | . 1 . . . . . . . . . . . . . . . . . . . . . . . . . . . . . Scanalyzers . | . . . . . . . . . . . . . . . . . . . . . . . . . . . . . . . Garrison Access . | . . . . . . . . . . . . . . . . . . . . . . . . . . . . . . . Data Cores Recovered 1 | . . . . . . . . . . . . . . . . . . . . . . . . . . 1 . . . . Used 1 | . . . . . . . . . . . . . . . . . . . . . . . . . . 1 . . . . Hacking Detections 52 | . 5 . . 1 2 . 3 . 9 . 1 . 3 . 4 . 1 . 2 . 4 6 2 . 5 2 2 . . . Full Trace Events 9 | . 2 . . . . . 2 . 2 . . . . . 1 . . . 1 . . 1 . . . . . . . . Feedback Events . | . . . . . . . . . . . . . . . . . . . . . . . . . . . . . . . Feedback Blocked . | . . . . . . . . . . . . . . . . . . . . . . . . . . . . . . . Robot Schematics Acquired . | . . . . . . . . . . . . . . . . . . . . . . . . . . . . . . . Robots Built . | . . . . . . . . . . . . . . . . . . . . . . . . . . . . . . . Matter . | . . . . . . . . . . . . . . . . . . . . . . . . . . . . . . . Time . | . . . . . . . . . . . . . . . . . . . . . . . . . . . . . . . Total Robot Build Rating . | . . . . . . . . . . . . . . . . . . . . . . . . . . . . . . . Part Schematics Acquired 4 | . . . . . . . . . 1 . . . . . . . . . 1 . . 1 . . . . 1 . . . Parts Built 7 | . . . . . . . . . 2 . . . . . . . . . . . 2 . . . . . 3 . . . Matter 892 | . . . . . . . . . 168 . . . . . . . . . . . 212 . . . . . 512 . . . Time 275 | . . . . . . . . . 42 . . . . . . . . . . . 106 . . . . . 127 . . . Total Part Build Rating 43 | . . . . . . . . . 8 . . . . . . . . . . . 12 . . . . . 23 . . . Parts Repaired . | . . . . . . . . . . . . . . . . . . . . . . . . . . . . . . . Time . | . . . . . . . . . . . . . . . . . . . . . . . . . . . . . . . Parts Recycled . | . . . . . . . . . . . . . . . . . . . . . . . . . . . . . . . Recycled Matter . | . . . . . . . . . . . . . . . . . . . . . . . . . . . . . . . Retrieved Matter . | . . . . . . . . . . . . . . . . . . . . . . . . . . . . . . . Retrieved Components . | . . . . . . . . . . . . . . . . . . . . . . . . . . . . . . . Parts Scanalyzed . | . . . . . . . . . . . . . . . . . . . . . . . . . . . . . . . Part Schematics Acquired . | . . . . . . . . . . . . . . . . . . . . . . . . . . . . . . . Parts Damaged . | . . . . . . . . . . . . . . . . . . . . . . . . . . . . . . . Bothacking | -11 -10 -10 -10 -9 -8 -8 -8 -8 -7 -7 -7 -7 -6 -6 -6 -6 -5 -5 -5 -5 -4 -4 -4 -4 -4 -3 -3 -3 -2 -2 ------------ Run | Scr Mat Min Exi Min Mat Gar Mat Gar Fac Gar Fac Gar Fac Gar Fac Gar Fac Was Fac Gar Fac Ext Cet Arc Hub Res Arm Lab Res Tes Used RIF Installer 7 | . . . . . . 1 . 1 . 1 . 1 . 1 . 1 . . . 1 . . . . . . . . . . Hotswap 1 | . . . . . . . . . . 1 . . . . . . . . . . . . . . . . . . . . Command Fork 1 | . . . . . . . . 1 . . . . . . . . . . . . . . . . . . . . . . Threat Obfuscator 2 | . . . . . . . . . . . . . . 1 . . . . . 1 . . . . . . . . . . Robot Detection 1 | . . . . . . . . . . . . . . . . 1 . . . . . . . . . . . . . . Autooverride 1 | . . . . . . . . . . . . 1 . . . . . . . . . . . . . . . . . . Robots Hacked 70 | . . . . . . . . . 8 7 3 6 . 9 4 3 1 3 . 13 2 2 1 . 6 1 1 . . . Non-combat 4 | . . . . . . . . . 1 . 1 . . . 2 . . . . . . . . . . . . . . . Combat 66 | . . . . . . . . . 7 7 2 6 . 9 2 3 1 3 . 13 2 2 1 . 6 1 1 . . . Autooverrided 17 | . . . . . . . . . . . . . . 4 2 . . . . . 2 2 . . 5 1 1 . . . Robot Hacks Applied 64 | . . . . . . . . . 11 7 3 6 . 7 5 3 1 5 . 13 . . 1 . 2 . . . . . parse_system 4 | . . . . . . . . . . . 1 . . . . . . 2 . . . . 1 . . . . . . . ignore_parts 1 | . . . . . . . . . . . 1 . . . . . . . . . . . . . . . . . . . purge_threat 8 | . . . . . . . . . 4 . . . . . 4 . . . . . . . . . . . . . . . map_route 1 | . . . . . . . . . . . . . . . 1 . . . . . . . . . . . . . . . ignore_targets 3 | . . . . . . . . . . . . . . . . . . 3 . . . . . . . . . . . . amplify_resonance 3 | . . . . . . . . . . 1 . 2 . . . . . . . . . . . . . . . . . . overwrite_iff 12 | . . . . . . . . . 3 . . 1 . 1 . . . . . 6 . . . . 1 . . . . . formatsys_high 32 | . . . . . . . . . 4 6 1 3 . 6 . 3 1 . . 7 . . . . 1 . . . . . Relay Couplers Released 33 | . . . . . . 4 . 5 1 6 . 2 . 6 . 2 . . . 4 . . . . 1 . . . . 2 Machine Destruction 32 | . . . . . . 4 . 5 . 6 . 2 . 6 . 2 . . . 4 . . . . 1 . . . . 2 Programmers 1 | . . . . . . . . . 1 . . . . . . . . . . . . . . . . . . . . . Attached 16 | . . . . . . . . . 4 1 1 1 . 3 1 . . 1 . 2 2 . . . . . . . . . Robots Rewired 23 | . . . . . . . . . . . . . . 7 . . . . . . . 13 . . . . 2 . . 1 Allies Hacked 5 | . . . . . . . . . 1 . . . . 1 . . . . . 3 . . . . . . . . . . Hacks Repelled . | . . . . . . . . . . . . . . . . . . . . . . . . . . . . . . . Allies | -11 -10 -10 -10 -9 -8 -8 -8 -8 -7 -7 -7 -7 -6 -6 -6 -6 -5 -5 -5 -5 -4 -4 -4 -4 -4 -3 -3 -3 -2 -2 -------- Run | Scr Mat Min Exi Min Mat Gar Mat Gar Fac Gar Fac Gar Fac Gar Fac Gar Fac Was Fac Gar Fac Ext Cet Arc Hub Res Arm Lab Res Tes Total Allies 129 | . . . . . . . . . 7 7 5 6 . 16 3 4 1 . . 15 2 26 5 . 10 1 13 . . 8 Largest Group 15 | . . . . . . . . . 5 7 11 15 . 10 9 4 4 1 . 4 1 13 15 5 4 . 10 . . 7 Highest-Rated Group 1003 | . . . . . . . . . 112 164 269 304 . 319 290 48 53 12 . 48 49 672 1003 314 237 . 481 . . 99 Highest-Rated Ally 156 | . . . . . . . . . 32 32 32 32 . 41 41 12 29 12 . 30 49 156 150 94 94 . 58 . . 79 Total Orders . | . . . . . . . . . . . . . . . . . . . . . . . . . . . . . . . Ally Attacks 838 | . . . . . . . . . 37 26 9 90 . 69 11 . 55 7 . 50 2 181 119 30 54 1 68 . . 29 Total Damage 20587 | . . . . . . . . . 684 699 105 1721 . 1977 163 . 678 102 . 747 30 4211 2925 934 2017 17 2162 . . 1415 Kills 115 | . . . . . . . . . 6 4 2 17 . 11 1 . 3 . . 5 . 25 15 4 7 . 7 . . 8 Allies Corrupted 3 | . . . . . . . . . . . . . . . . . . . . . . 3 . . . . . . . . Allies Melted . | . . . . . . . . . . . . . . . . . . . . . . . . . . . . . . . Intel | -11 -10 -10 -10 -9 -8 -8 -8 -8 -7 -7 -7 -7 -6 -6 -6 -6 -5 -5 -5 -5 -4 -4 -4 -4 -4 -3 -3 -3 -2 -2 ------- Run | Scr Mat Min Exi Min Mat Gar Mat Gar Fac Gar Fac Gar Fac Gar Fac Gar Fac Was Fac Gar Fac Ext Cet Arc Hub Res Arm Lab Res Tes Robot Analysis Total 3 | . 2 . . . . . . . 1 . . . . . . . . . . . . . . . . . . . . . Derelict Logs Recovered . | . . . . . . . . . . . . . . . . . . . . . . . . . . . . . . . Drone Launches . | . . . . . . . . . . . . . . . . . . . . . . . . . . . . . . . Drone Recoveries . | . . . . . . . . . . . . . . . . . . . . . . . . . . . . . . . Exploration | -11 -10 -10 -10 -9 -8 -8 -8 -8 -7 -7 -7 -7 -6 -6 -6 -6 -5 -5 -5 -5 -4 -4 -4 -4 -4 -3 -3 -3 -2 -2 ------------- Run | Scr Mat Min Exi Min Mat Gar Mat Gar Fac Gar Fac Gar Fac Gar Fac Gar Fac Was Fac Gar Fac Ext Cet Arc Hub Res Arm Lab Res Tes Turns Passed 25175 | 119 1086 375 268 293 876 1225 1031 699 2054 1355 501 671 279 868 1313 192 163 196 512 1167 738 1327 418 116 1819 2813 1646 241 173 641 Spaces Moved 16933 | 85 758 337 267 243 548 794 677 467 1360 733 392 456 325 641 1203 173 179 127 459 869 572 936 260 69 1074 1534 882 171 134 208 Core 9 | 9 . . . . . . . . . . . . . . . . . . . . . . . . . . . . . . Treads . | . . . . . . . . . . . . . . . . . . . . . . . . . . . . . . . Legs . | . . . . . . . . . . . . . . . . . . . . . . . . . . . . . . . Wheels 7020 | 76 758 337 267 243 548 794 677 467 1360 733 392 368 . . . . . . . . . . . . . . . . . . Hover 9904 | . . . . . . . . . . . . 88 325 641 1203 173 179 127 459 869 572 936 260 69 1074 1534 882 171 134 208 Flight . | . . . . . . . . . . . . . . . . . . . . . . . . . . . . . . . Fastest Speed 50 | 50 100 100 100 100 100 110 110 110 110 110 110 72 72 72 72 72 72 72 63 63 63 63 128 128 63 56 122 122 122 122 Average Speed 99 | 94 100 100 100 100 104 110 110 110 110 116 112 109 72 72 72 72 72 126 85 65 63 84 128 128 98 124 122 122 122 122 Slowest Speed 146 | 100 100 100 100 100 110 110 110 110 110 120 120 146 72 72 72 72 72 142 142 128 63 128 128 128 128 130 122 122 122 122 Overloaded Moves . | . . . . . . . . . . . . . . . . . . . . . . . . . . . . . . . Propulsion Burnouts . | . . . . . . . . . . . . . . . . . . . . . . . . . . . . . . . Robots Hopped . | . . . . . . . . . . . . . . . . . . . . . . . . . . . . . . . Cave-ins Triggered . | . . . . . . . . . . . . . . . . . . . . . . . . . . . . . . . Teleports 1 | . . . . . . . . . . . . . . . . . . . . . . . . . . . . . . 1 Exploration Rate (%) 52 | 5 88 64 66 39 45 97 50 61 34 85 13 53 10 73 31 39 10 84 17 92 15 86 84 82 88 38 54 99 8 26 Regions Visited 30 Branch Regions 10 Pre-discovered Areas 1 | . 1 . . . . . . . . . . . . . . . . . . . . . . . . . . . . . Known Exits Taken 9 | . . . . . 1 . 1 . 1 . 1 . 1 . 1 . . . 1 . 1 . . . . 1 . . . . Unknown Exits Taken 12 | 1 1 1 1 1 . . . . . . . . . . . . . . . . . 1 1 1 1 . 1 1 1 . Scrap Searched 2 | . . 1 . 1 . . . . . . . . . . . . . . . . . . . . . . . . . . Spaces Dug 109 | . . . . . . . 6 1 8 14 . 6 3 1 5 . . . 1 4 9 2 1 . 10 3 9 . . 26 Terrain Destroyed 655 | . . . . . 17 131 6 1 9 14 . 6 3 1 5 . . . 1 4 9 2 1 . 155 17 11 . . 262 Melee 83 | . . . . . . . 6 1 8 14 . 6 3 1 5 . . . 1 4 9 2 1 . 10 3 9 . . . Projectile 9 | . . . . . . . . . 1 . . . . . . . . . . . . . . . 1 3 2 . . 2 AOE 563 | . . . . . 17 131 . . . . . . . . . . . . . . . . . . 144 11 . . . 260 Terrain Rammed . | . . . . . . . . . . . . . . . . . . . . . . . . . . . . . . . Walls Destroyed . | . . . . . . . . . . . . . . . . . . . . . . . . . . . . . . . Machines Disabled . | . . . . . . . . . . . . . . . . . . . . . . . . . . . . . . . Actions | -11 -10 -10 -10 -9 -8 -8 -8 -8 -7 -7 -7 -7 -6 -6 -6 -6 -5 -5 -5 -5 -4 -4 -4 -4 -4 -3 -3 -3 -2 -2 --------- Run | Scr Mat Min Exi Min Mat Gar Mat Gar Fac Gar Fac Gar Fac Gar Fac Gar Fac Was Fac Gar Fac Ext Cet Arc Hub Res Arm Lab Res Tes Total 22712 | 101 907 365 268 274 754 1026 857 600 1758 1138 447 571 355 942 1497 226 209 151 541 1253 858 1383 339 92 1491 2179 1304 194 139 493 Wait 2393 | . 15 20 . 6 65 15 59 6 189 264 43 10 16 111 183 22 17 . 44 124 200 167 60 15 142 274 204 . . 122 Move 16907 | 84 757 336 266 242 548 793 677 466 1359 732 392 455 325 640 1202 171 179 126 458 868 571 935 259 68 1073 1533 881 170 133 208 Hop . | . . . . . . . . . . . . . . . . . . . . . . . . . . . . . . . Pick Up 75 | . . . . 2 2 8 . 5 3 6 . 3 . 6 . 2 . 1 . 3 3 4 5 1 5 8 4 2 . 2 Fast Attach 119 | 8 10 . 1 . 19 2 4 1 11 5 2 4 2 . 6 . . 3 1 4 6 3 . . 4 10 2 9 . 2 Attach 24 | . . . . . 1 . . . 1 2 . 2 . 2 . . . 1 . . 2 3 . . 3 3 . 1 . 3 Detach 47 | . 3 . . . 10 1 . . 2 1 2 3 . . 1 . . 4 . . 2 4 . . 5 5 1 . . 3 Swap 50 | . 1 . . 1 5 4 5 . 3 2 1 2 . 2 2 1 1 2 . 4 . . . . 1 8 4 . . 1 Drop 143 | . 6 . 1 1 21 8 5 5 12 6 . 3 2 3 4 2 . 3 . 1 7 5 4 . 9 17 5 8 . 5 Fire 695 | 9 82 4 . 8 45 62 50 37 32 11 7 6 . 15 9 3 4 6 . 14 . . 1 . 4 104 85 . 4 93 Melee 831 | . . . . . 8 . 24 6 75 58 . 36 10 53 68 6 1 5 18 98 43 44 4 2 159 73 30 4 . 6 Ram 3 | . . . . . . . . . . 1 . . . . . . . . . . . 1 . . . . . . . 1 Kick . | . . . . . . . . . . . . . . . . . . . . . . . . . . . . . . . Crush . | . . . . . . . . . . . . . . . . . . . . . . . . . . . . . . . Escape Stasis 438 | . . . . . . 93 . 56 8 32 . 16 . 67 . 12 . . . 35 . 52 . . . . 39 . . 28 Rewire 107 | . . . . . . . . . 1 2 . . . 17 . . . . . 2 . 76 . . . . 6 . . 3 Trap . | . . . . . . . . . . . . . . . . . . . . . . . . . . . . . . . Miscellaneous 880 | . 33 5 . 14 30 40 33 18 62 16 . 31 . 26 22 7 7 . 20 100 24 89 6 6 86 144 43 . 2 16 Route ------- -11/Scrapyard -10/Materials (discovered 5 exits: [*Mat x3] / [*Min x2]) -10/Mines (discovered 3 exits: [*Mat x2] / *Exi) -10/Exiles -9/Mines (discovered 2 exits: *Mat x2) -8/Materials (discovered 3 exits: *Fac / [*Sto] / Gar) -8/Garrison (discovered 3 exits: *Mat x3) -8/Materials (discovered 4 exits: *Fac x2 / [*Sto] / Gar) -8/Garrison (discovered 2 exits: *Fac x2) -7/Factory (discovered 4 exits: *Fac x2 / [*Low] / Gar) -7/Garrison (discovered 3 exits: *Fac x3) -7/Factory (discovered 2 exits: *Fac / Gar) -7/Garrison -6/Factory (discovered 2 exits: *Fac / Gar) -6/Garrison (discovered 3 exits: *Fac x3) -6/Factory (discovered 3 exits: *Fac / [*Low] / Gar) -6/Garrison -5/Factory -5/Waste -5/Factory -5/Garrison (discovered 3 exits: *Fac x3) -4/Factory (discovered 4 exits: Upp x2 / *Ext x2) -4/Extension (discovered 2 exits: *Res / *Cet) -4/Cetus (discovered 2 exits: *Res / [*Arc]) -4/Archives (discovered 2 exits: *Hub x2) -4/Hub_04(d) (discovered 4 exits: *Res x4) -3/Research (discovered 4 exits: *Res / *Arm / Qua x2) -3/Armory -3/Lab -2/Research -2/Testing History --------- Turn | Location | Event 11 | -11/Scrapyard | Upgraded with Propulsion slot (x1) 13 | -11/Scrapyard | Upgraded with Weapon slot (x1) 20 | -11/Scrapyard | Discovered new exit (range 14) 71 | -11/Scrapyard | Upgraded with Utility slot (x1) 102 | -11/Scrapyard | Upgraded with Utility slot (x1) 120 | -11/Scrapyard | Entered Materials 120 | -10/Materials | Discovered new exit (range 17) 234 | -10/Materials | Discovered new exit (range 14) 353 | -10/Materials | Discovered new exit (range 4) 513 | -10/Materials | Discovered new exit (range 3) 691 | -10/Materials | Reached level 2 700 | -10/Materials | Upgraded with Weapon slot (x2) 859 | -10/Materials | Discovered new exit (range 11) 971 | -10/Materials | Core integrity fell below 50% 1019 | -10/Materials | Build established: Tank 1206 | -10/Materials | Entered Mines 1208 | -10/Mines | Reached level 3 1245 | -10/Mines | Discovered new exit (range 7) 1293 | -10/Mines | Discovered new exit (range 10) 1437 | -10/Mines | Deemed a non-threat by the Exiles lab entrance 1495 | -10/Mines | Assembled infested the area 1500 | -10/Mines | Assisted by a Guerilla fighting off Assembled 1542 | -10/Mines | Build established: Gunner 1577 | -10/Mines | Discovered new exit (range 5) 1581 | -10/Mines | Entered Exiles 1605 | -10/Exiles | Met 8R-AWN 1622 | -10/Exiles | Met EX-HEX 1696 | -10/Exiles | Met EX-BIN 1713 | -10/Exiles | Aligned with FarCom system 1714 | -10/Exiles | Given EX-Vault access code 1737 | -10/Exiles | Opened EX-Vault 1748 | -10/Exiles | Found Modified TNC 1770 | -10/Exiles | Warned to stay clear of 0b10 Research branches 1800 | -10/Exiles | Met EX-DEC 1841 | -10/Exiles | Discovered new exit (range 10) 1849 | -10/Exiles | Left Exiles lab with Modified TNC 1849 | -10/Exiles | Entered Mines 1851 | -9/Mines | Reached level 4 1948 | -9/Mines | Joined a pair of Derelicts in attacking an 0b10 outpost 1968 | -9/Mines | Met a Derelict bent on vengeance 2035 | -9/Mines | Discovered new exit (range 5) 2089 | -9/Mines | Discovered new exit (range 4) 2142 | -9/Mines | Entered Materials 2144 | -8/Materials | Reached level 5 2182 | -8/Materials | Garrison activated, responded to threat 2271 | -8/Materials | Discovered new exit (range 14) 2429 | -8/Materials | Reached level 6 2662 | -8/Materials | Upgraded with Power slot (x2) 2752 | -8/Materials | Core integrity fell below 50% 2851 | -8/Materials | Discovered new exit (range 9) 2965 | -8/Materials | Reached level 7 3018 | -8/Materials | Identified exit to Garrison 3018 | -8/Materials | Entered Garrison 3040 | -8/Garrison | Triggered checkpoint 3180 | -8/Garrison | Triggered checkpoint 3187 | -8/Garrison | Reached level 8 3376 | -8/Garrison | Discovered new exit (range 8) 3426 | -8/Garrison | Triggered checkpoint 3548 | -8/Garrison | Discovered new exit (range 8) 3561 | -8/Garrison | Installed Relay Interface Framework 3618 | -8/Garrison | Triggered checkpoint 3689 | -8/Garrison | Reached level 9 3697 | -8/Garrison | Phase Generator disabled 3756 | -8/Garrison | Garrison Relay disabled 3810 | -8/Garrison | Triggered checkpoint 3840 | -8/Garrison | Triggered checkpoint 3863 | -8/Garrison | Garrison Relay disabled 3902 | -8/Garrison | Discovered new exit (range 15) 4012 | -8/Garrison | Triggered checkpoint 4073 | -8/Garrison | Garrison Relay disabled 4073 | -8/Garrison | Reached level 10 4243 | -8/Garrison | Entered Materials 4384 | -8/Materials | Build established: Mutant 4643 | -8/Materials | First assault squad dispatched 4706 | -8/Materials | Build established: Gunner 4722 | -8/Materials | Reached level 11 4727 | -8/Materials | Upgraded with Utility slot (x1) 4806 | -8/Materials | Discovered new exit (range 4) 4950 | -8/Materials | Discovered new exit (range 7) 4989 | -8/Materials | Discovered new exit (range 16) 5221 | -8/Materials | Build established: Tank 5274 | -8/Materials | Identified exit to Garrison 5274 | -8/Materials | Entered Garrison 5280 | -8/Garrison | Expanded RIF knowledge: Command Fork 5324 | -8/Garrison | Triggered checkpoint 5402 | -8/Garrison | Triggered checkpoint 5439 | -8/Garrison | Garrison Relay disabled 5439 | -8/Garrison | Reached level 12 5465 | -8/Garrison | Discovered new exit (range 10) 5536 | -8/Garrison | Triggered checkpoint 5555 | -8/Garrison | Triggered checkpoint 5638 | -8/Garrison | Triggered checkpoint 5670 | -8/Garrison | Garrison Relay disabled 5739 | -8/Garrison | Build established: Hauler-Tank 5795 | -8/Garrison | Discovered new exit (range 14) 5838 | -8/Garrison | Triggered checkpoint 5916 | -8/Garrison | Garrison Relay disabled 5973 | -8/Garrison | Entered Factory 5975 | -7/Factory | Reached level 13 6035 | -7/Factory | Upgraded with Utility slot (x1) 6326 | -7/Factory | Reached level 14 6504 | -7/Factory | Identified exit to Garrison 6830 | -7/Factory | Discovered new exit (range 9) 6964 | -7/Factory | Fabricated Powered Armor (x2) 6964 | -7/Factory | Build established: Bothacker-Gladiator 7155 | -7/Factory | Discovered new exit (range 4) 7460 | -7/Factory | Reached level 15 7499 | -7/Factory | Upgraded with Utility slot (x1) 7812 | -7/Factory | Discovered new exit (range 3) 8027 | -7/Factory | Entered Garrison 8054 | -7/Garrison | Triggered checkpoint 8078 | -7/Garrison | Garrison Relay disabled 8325 | -7/Garrison | Triggered checkpoint 8386 | -7/Garrison | Reached level 16 8498 | -7/Garrison | Discovered new exit (range 9) 8522 | -7/Garrison | Triggered checkpoint 8557 | -7/Garrison | Garrison Relay disabled 8561 | -7/Garrison | Upgraded with Weapon slot (x1) 8696 | -7/Garrison | Triggered checkpoint 8706 | -7/Garrison | Triggered checkpoint 8755 | -7/Garrison | Discovered new exit (range 10) 8773 | -7/Garrison | Expanded RIF knowledge: Hotswap 8958 | -7/Garrison | Triggered checkpoint 9031 | -7/Garrison | Garrison Relay disabled 9246 | -7/Garrison | Triggered checkpoint 9267 | -7/Garrison | Garrison Relay disabled 9318 | -7/Garrison | Discovered new exit (range 15) 9382 | -7/Garrison | Entered Factory 9382 | -7/Factory | Accompanied by 7 allies 9684 | -7/Factory | Allied Derelicts emerged from ambush trap array 9699 | -7/Factory | Discovered new exit (range 5) 9859 | -7/Factory | Identified exit to Garrison 9883 | -7/Factory | Entered Garrison 9883 | -7/Garrison | Accompanied by 11 allies 9932 | -7/Garrison | Triggered checkpoint 9944 | -7/Garrison | Triggered checkpoint 9952 | -7/Garrison | Triggered checkpoint 9952 | -7/Garrison | Triggered checkpoint 10055 | -7/Garrison | Discovered new exit (range 13) 10076 | -7/Garrison | Expanded RIF knowledge: Autooverride 10114 | -7/Garrison | Reached level 17 10238 | -7/Garrison | Triggered checkpoint 10384 | -7/Garrison | Garrison Relay disabled 10472 | -7/Garrison | Upgraded with Propulsion slot (x1) 10554 | -7/Garrison | Entered Factory 10556 | -6/Factory | Reached level 18 10671 | -6/Factory | Discovered new exit (range 14) 10833 | -6/Factory | Identified exit to Garrison 10833 | -6/Factory | Entered Garrison 10874 | -6/Garrison | Triggered checkpoint 11004 | -6/Garrison | Triggered checkpoint 11039 | -6/Garrison | Garrison Relay disabled 11207 | -6/Garrison | P-60 Hacker assimilated allied Fighter 5a 11246 | -6/Garrison | Triggered checkpoint 11246 | -6/Garrison | Spotted B-75 Beast 11275 | -6/Garrison | Reached level 19 11278 | -6/Garrison | Destroyed B-75 Beast 11285 | -6/Garrison | Upgraded with Utility slot (x1) 11311 | -6/Garrison | Discovered new exit (range 17) 11316 | -6/Garrison | Triggered checkpoint 11380 | -6/Garrison | Triggered checkpoint 11394 | -6/Garrison | Garrison Relay disabled 11434 | -6/Garrison | Triggered checkpoint 11498 | -6/Garrison | Triggered checkpoint 11526 | -6/Garrison | Triggered checkpoint 11547 | -6/Garrison | Garrison Relay disabled 11571 | -6/Garrison | Discovered new exit (range 17) 11668 | -6/Garrison | Discovered new exit (range 9) 11679 | -6/Garrison | Expanded RIF knowledge: Threat Obfuscation 11701 | -6/Garrison | Entered Factory 11701 | -6/Factory | Accompanied by 9 allies 11995 | -6/Factory | Discovered new exit (range 7) 12112 | -6/Factory | Build established: Botlord-Gladiator 12901 | -6/Factory | Discovered new exit (range 7) 13004 | -6/Factory | Identified exit to Garrison 13014 | -6/Factory | Entered Garrison 13018 | -6/Garrison | Expanded RIF knowledge: Robot Detection 13018 | -6/Garrison | Reached level 20 13040 | -6/Garrison | Triggered checkpoint 13085 | -6/Garrison | Garrison Relay disabled 13130 | -6/Garrison | Triggered checkpoint 13163 | -6/Garrison | Discovered new exit (range 13) 13206 | -6/Garrison | Entered Factory 13206 | -5/Factory | Accompanied by 4 allies 13369 | -5/Factory | Sucked down chute 13369 | -5/Factory | Entered Waste 13370 | -5/Waste | 1 allies followed down the chute 13371 | -5/Waste | Reached level 21 13372 | -5/Waste | Spotted C-40 Crusher 13384 | -5/Waste | EMP discharged 13387 | -5/Waste | Spotted C-40 Crusher 13407 | -5/Waste | Destroyed C-40 Crusher 13413 | -5/Waste | Found Damper Plating 13418 | -5/Waste | Spotted C-40 Crusher 13458 | -5/Waste | Found Prototype Slashing Weapon 13458 | -5/Waste | Identified Molecular Scythe 13468 | -5/Waste | Spotted C-40 Crusher 13474 | -5/Waste | Spotted C-40 Crusher 13484 | -5/Waste | EMP discharged 13484 | -5/Waste | System corruption reached 10% 13493 | -5/Waste | Spotted C-40 Crusher 13548 | -5/Waste | Discovered new exit (range 12) 13565 | -5/Waste | Entered Factory 13790 | -5/Factory | Upgraded with Propulsion slot (x1) 14074 | -5/Factory | Identified exit to Garrison 14077 | -5/Factory | Entered Garrison 14174 | -5/Garrison | Triggered checkpoint 14207 | -5/Garrison | Garrison Relay disabled 14274 | -5/Garrison | Triggered checkpoint 14297 | -5/Garrison | Triggered checkpoint 14316 | -5/Garrison | Discovered new exit (range 12) 14334 | -5/Garrison | Triggered checkpoint 14404 | -5/Garrison | Garrison Relay disabled 14540 | -5/Garrison | P-70 Sage assimilated allied Virus 6h 14650 | -5/Garrison | Discovered new exit (range 11) 14659 | -5/Garrison | Expanded RIF knowledge: Threat Obfuscation 14868 | -5/Garrison | Reached level 22 14917 | -5/Garrison | Triggered checkpoint 14955 | -5/Garrison | Garrison Relay disabled 15039 | -5/Garrison | Discovered new exit (range 10) 15064 | -5/Garrison | Triggered checkpoint 15244 | -5/Garrison | Entered Factory 15246 | -4/Factory | Reached level 23 15246 | -4/Factory | Upgraded with Utility slot (x1) 15257 | -4/Factory | Identified exit to Upper Caves 15257 | -4/Factory | Identified exit to Extension 15341 | -4/Factory | Local fabrication network quarantined 15383 | -4/Factory | Fabricated System Restoration Module (x2) 15628 | -4/Factory | Found Prototype Processor 15628 | -4/Factory | Identified Exp. Terrain Scan Processor 15668 | -4/Factory | Core integrity fell below 50% 15982 | -4/Factory | Entered Extension 15984 | -4/Extension | Reached level 24 16029 | -4/Extension | Spotted B-86 Titan 16096 | -4/Extension | Rescued a captive Derelict 16252 | -4/Extension | Rescued a captive Derelict 16252 | -4/Extension | Rescued a captive Derelict 16362 | -4/Extension | Rescued A7 16665 | -4/Extension | Spotted B-86 Titan 16676 | -4/Extension | Allies destroyed B-86 Titan 16700 | -4/Extension | Allies destroyed B-86 Titan 16893 | -4/Extension | Rescued a captive Derelict 16894 | -4/Extension | Rescued a captive Derelict 17036 | -4/Extension | Rescued a captive Derelict 17145 | -4/Extension | Rescued a captive Derelict 17184 | -4/Extension | Rescued a captive Derelict 17207 | -4/Extension | Rescued a captive Derelict 17209 | -4/Extension | Rescued a captive Derelict 17245 | -4/Extension | Reached level 25 17284 | -4/Extension | Discovered new exit (range 10) 17285 | -4/Extension | Discovered new exit (range 6) 17290 | -4/Extension | Build established: Bothacker-Gladiator 17296 | -4/Extension | Upgraded with Weapon slot (x2) 17309 | -4/Extension | Entered Cetus 17309 | -4/Cetus | Accompanied by 12 allies (A7) 17314 | -4/Cetus | Acquired a Cetus Manufacturing Module code from A7 17324 | -4/Cetus | Spotted Cetus Guard 17324 | -4/Cetus | Spotted Cetus Guard 17324 | -4/Cetus | Spotted Cetus Guard 17328 | -4/Cetus | Spotted Cetus Guard 17332 | -4/Cetus | Allies destroyed Cetus Guard 17338 | -4/Cetus | Destroyed Cetus Guard 17342 | -4/Cetus | Allies destroyed Cetus Guard 17345 | -4/Cetus | Allies destroyed Cetus Guard 17414 | -4/Cetus | Started Cetus Manufacturing Module 17423 | -4/Cetus | Escorted A7 to Cetus Mainframe 17439 | -4/Cetus | Manufactured an Enhanced Grunt 17464 | -4/Cetus | Manufactured an Enhanced Grunt 17489 | -4/Cetus | Manufactured an Enhanced Grunt 17514 | -4/Cetus | Manufactured an Enhanced Grunt 17521 | -4/Cetus | Discovered new exit (range 19) 17539 | -4/Cetus | Manufactured an Enhanced Grunt 17553 | -4/Cetus | Spotted Cetus Guard 17553 | -4/Cetus | Spotted Cetus Guard 17554 | -4/Cetus | Spotted Cetus Guard 17559 | -4/Cetus | Discovered new exit (range 20) 17563 | -4/Cetus | Allies destroyed Cetus Guard 17563 | -4/Cetus | Spotted Cetus Guard 17573 | -4/Cetus | Allies destroyed Cetus Guard 17577 | -4/Cetus | Allies destroyed Cetus Guard 17581 | -4/Cetus | Met Revision 17 17584 | -4/Cetus | Destroyed Revision 17 17600 | -4/Cetus | Destroyed A7 17606 | -4/Cetus | Extracted ID and sensor layout for unrecognized location from A7's data core 17727 | -4/Cetus | Entered Archives 17727 | -4/Archives | Accompanied by 5 allies 17758 | -4/Archives | Discovered new exit (range 20) 17797 | -4/Archives | Discovered new exit (range 19) 17843 | -4/Archives | Entered Hub_04(d) 17843 | -4/Hub_04(d) | Accompanied by 3 allies 17845 | -4/Hub_04(d) | Reached level 26 17891 | -4/Hub_04(d) | Discovered new exit (range 20) 18093 | -4/Hub_04(d) | Discovered new exit (range 17) 18229 | -4/Hub_04(d) | Discovered new exit (range 12) 18679 | -4/Hub_04(d) | Discovered new exit (range 19) 18931 | -4/Hub_04(d) | Allied Derelicts emerged from ambush trap array 18933 | -4/Hub_04(d) | Garrison activated, responded to threat 19099 | -4/Hub_04(d) | Network Hub disabled 19112 | -4/Hub_04(d) | Spotted Lightning 19116 | -4/Hub_04(d) | Spotted Lightning 19119 | -4/Hub_04(d) | Spotted Lightning 19132 | -4/Hub_04(d) | Spotted Lightning 19178 | -4/Hub_04(d) | Destroyed Lightning 19184 | -4/Hub_04(d) | Spotted Lightning 19184 | -4/Hub_04(d) | Spotted Lightning 19189 | -4/Hub_04(d) | Destroyed Lightning 19245 | -4/Hub_04(d) | Destroyed Lightning 19251 | -4/Hub_04(d) | Found Prototype Energy Cannon 19256 | -4/Hub_04(d) | Found Prototype Processor 19256 | -4/Hub_04(d) | Identified Exp. Targeting Computer 19279 | -4/Hub_04(d) | Destroyed Lightning 19284 | -4/Hub_04(d) | Found Prototype Device 19284 | -4/Hub_04(d) | Identified EM Dispersion Field 19295 | -4/Hub_04(d) | Destroyed Lightning 19326 | -4/Hub_04(d) | Destroyed Lightning 19408 | -4/Hub_04(d) | Core integrity fell below 20% 19662 | -4/Hub_04(d) | Entered Research 19664 | -3/Research | Reached level 27 19879 | -3/Research | Identified EMDS 20344 | -3/Research | Spotted B-86 Titan 20621 | -3/Research | Build established: Scavenger-Gladiator 20814 | -3/Research | Upgraded with Propulsion slot (x1) 21001 | -3/Research | Reached level 28 21206 | -3/Research | Identified exit to Armory 21206 | -3/Research | Identified exit to Quarantine 21515 | -3/Research | Spotted B-86 Titan 22105 | -3/Research | Discovered new exit (range 19) 22461 | -3/Research | First assault squad dispatched 22475 | -3/Research | Entered Armory 22583 | -3/Armory | Fabricated Imp. Force Field (x2) 22766 | -3/Armory | Fabricated Adv. Phase Shifter (x1) 22838 | -3/Armory | Assisted by bots powering up and referring to "LRC-V3" 22982 | -3/Armory | Spotted B-86 Titan 23004 | -3/Armory | Reached level 29 23005 | -3/Armory | Upgraded with Power slot (x1) 23329 | -3/Armory | Destroyed B-86 Titan 23522 | -3/Armory | Found Fusion Bomb Launcher 23825 | -3/Armory | Destroyed 8 combat bots 24115 | -3/Armory | Discovered new exit (range 4) 24121 | -3/Armory | Entered Lab 24121 | -3/Lab | Discovered new exit (range 9) 24135 | -3/Lab | Hidden lab's door opened automatically 24135 | -3/Lab | Sensor layout match revealed 24136 | -3/Lab | Gained access to the hidden lab's interior 24136 | -3/Lab | Reached level 30 24136 | -3/Lab | Unable to decrypt terminal 24142 | -3/Lab | Unable to decrypt terminal 24150 | -3/Lab | Found Alien Artifact 24150 | -3/Lab | Identified Core Reset Matrix 24150 | -3/Lab | Used Core Reset Matrix 24154 | -3/Lab | Sensed 3 artifacts in vicinity 24195 | -3/Lab | Found Core Regenerator 24195 | -3/Lab | Used Core Regenerator, restored core integrity (+0) 24203 | -3/Lab | Found Integrated Dissipator 24203 | -3/Lab | Installed Integrated Dissipator, increased core heat dissipation (+20) 24211 | -3/Lab | Found Transdimensional Reconstructor 24243 | -3/Lab | Found Prototype Protection 24243 | -3/Lab | Identified Hvy. Regenerative Plating 24255 | -3/Lab | Found Prototype Energy Cannon 24255 | -3/Lab | Identified Potential Cannon 24263 | -3/Lab | Found Prototype Energy Gun 24263 | -3/Lab | Identified Tachyon Dispersion Ray 24277 | -3/Lab | Unable to decrypt terminal 24327 | -3/Lab | Discovered new exit (range 18) 24362 | -3/Lab | Entered Research 24530 | -2/Research | Discovered new exit (range 4) 24535 | -2/Research | Entered Testing 24536 | -2/Testing | Reached level 31 24536 | -2/Testing | Maximum security lockdown engaged 24636 | -2/Testing | Spotted Alpha 7 24658 | -2/Testing | Destroyed Alpha 7 24664 | -2/Testing | Spotted AQ-KVH(K) 24664 | -2/Testing | Spotted NO-1FJ(K) 24671 | -2/Testing | Build established: Scavenger-Mutant 24685 | -2/Testing | Rewired AQ-KVH(K) 24687 | -2/Testing | Scanned by Researcher 24690 | -2/Testing | Allies destroyed NO-1FJ(K) 24733 | -2/Testing | Reached level 32 24772 | -2/Testing | Spotted Striker 24773 | -2/Testing | Spotted Executioner 24778 | -2/Testing | Warped through subspace 24954 | -2/Testing | Core integrity fell below 50% 24965 | -2/Testing | Spotted Investigator 24966 | -2/Testing | Emitted hypermatrix ping 24971 | -2/Testing | Assembled emerged from beneath the floor 24972 | -2/Testing | Destroyed Investigator 24995 | -2/Testing | Reached level 33 25011 | -2/Testing | Spotted Executioner 25036 | -2/Testing | Destroyed 32 combat bots 25087 | -2/Testing | Core integrity fell below 20% 25097 | -2/Testing | Destroyed Executioner 25124 | -2/Testing | Destroyed 9 combat bots 25144 | -2/Testing | Destroyed Striker 25167 | -2/Testing | Spotted Striker 25170 | -2/Testing | Spotted Striker 25170 | -2/Testing | Spotted Striker 25170 | -2/Testing | Spotted Striker 25171 | -2/Testing | Spotted Investigator 25173 | -2/Testing | Spotted Striker 25176 | -2/Testing | Destroyed by Striker with Compact Linear Accelerator Last Messages --------------- C-30 ARC bursts open, deploying its payload. Striker unfolds itself. P-80 Master unfolds itself. Knocked back. Investigator: "PRIMARY THREAT IDENTIFIED. CONTAINMENT PROTOCOL APPLICABLE." P-80 Master suffers critical hit. Destroyed Imp. Antigrav System. P-80 Master shuts down. C-30 ARC bursts open, deploying its payload. H-88 Terminator unfolds itself. Striker unfolds itself. P-80 Master unfolds itself. I-47 Archangel unfolds itself. Penetrated by Slug. Knocked back. Acquired 14 matter. Knocked back. Damper Plating destroyed. Knocked back. Map ----- +----------------------------------------------------+ | ??????????# "#### """ """ #?????????????????? | | ??????##### ##?## """" "!? #?????????????????? | | ????###%|## # # """ "" #?????????????????? | | ????#][! #?????????????????? | | ????#[= ! # #?????????????????? | | ????#] !! # #### ####????????????????? | | ????## %[ ##??????????????? | | ?????# # ##?????????????? | | ?????# = # # #####?????????? | | ?????# ![= ! #?????????? | | ?????# % # # # % = #####?????? | | ?????# [ = # ## # * " #?????? | | ?????#!=* ###""""" = """!"####?????? | | ?????# = " " " + " *##????????? | | ?????# # " !#?????????? | | ?????# # " " " =|%=%#?????????? | | ?????# # % ## % [*!i!#?????????? | | ?????# # # # #"=%!""#?????????? | | ?????## # ## ## % # ##?????????? | | ????## # % #### ### ##??????????? | | ????# # ggg#?####???????????? | | ????## # %h##???????????????? | | ?????#"# # ! KK;##########??????? | | ????"" # |%= pp%m g%gg%bCC"+ "" | | "] ! # ## ### ### ;K #########??????? | | ####]" # @ % ppK#??????????????? | | ???#?"|% # " # #??????????????? | | ????"! ## """ pl #??????????????? | | ???# !""" # "] """ #gg#e?????????????? | | ???####### # """ "" #lb/ "????????????? | | ?????????# # m #"l# ""???????????? | | ?????????# # # b# ??????????? | | ?????????## %#################gi#?####?????????? | | ?????????## " g??????????????K"C"??????????????? | | ??????????# ??g????????e??? "%"??????????????? | | ??????????# ?g?????????????" " ??????????????? | | ??????????# ???????????????" ! ??????????????? | | ?????????? ??????????????" #?????????????? | | ??????????#######??????????????? #?????????????? | | ???????????????????????????????? ?????????????? | | ???????????????????????????????? ?????????????? | | ???????????????????????????????? ?????????????? | | ???????????????????????????????? ??????????????? | | ?????????????????????????????????????????????????? | | ?????????????????????????????????????????????????? | | ?????????????????????????????????????????????????? | | ?????????????????????????????????????????????????? | | ?????????????????????????????????????????????????? | | ?????????????????????????????????????????????????? | | ?????????????????????????????????????????????????? | +----------------------------------------------------+ Best States ------------- Heat Dissipation 123 Energy Generation 84 Energy Capacity 750 Matter Stores 550 Matter Capacity 550 Sight Range 20 Terrain Scan Range 16 Terrain Scan Density 110 Jamming Range 16 Armor Coverage 1200 Resistance: TH 10 Resistance: EM 90 Utility Shielding 66 Weapon Shielding 66 Melee Speed Boost 20 Phase Shifting 15 Evasion (%) 55 Melee Accuracy 8 Target Analysis 8 Core Analysis 10 Matter Filtering 30 Offensive Hacking 25 Defensive Hacking 10 Relay Coupler Types 223 Relay Coupler Value 5 Item Schematics ----------------- None Robot Schematics ------------------ None Fabricated ------------ Powered Armor | x2 | -7/Factory System Restoration Module | x2 | -4/Factory Imp. Force Field | x2 | -3/Armory Adv. Phase Shifter | x1 | -3/Armory Alien Tech Used ----------------- Core Reset Matrix Core Regenerator Integrated Dissipator Transdimensional Reconstructor Achievements -------------- Executioner Challenges ------------ None RPGLIKE | -11 -10 -10 -10 -9 -8 -8 -8 -8 -7 -7 -7 -7 -6 -6 -6 -6 -5 -5 -5 -5 -4 -4 -4 -4 -4 -3 -3 -3 -2 -2 --------- Run | Scr Mat Min Exi Min Mat Gar Mat Gar Fac Gar Fac Gar Fac Gar Fac Gar Fac Was Fac Gar Fac Ext Cet Arc Hub Res Arm Lab Res Tes Levels Raised 32 | . 1 1 . 1 3 3 1 1 3 1 . 1 1 1 . 1 . 1 . 1 1 2 . . 1 2 1 1 . 3 XP Earned 51370 | 3000 2935 850 350 990 3975 4531 2275 1567 4363 1551 59 1048 1139 2199 588 195 1354 139 175 1371 2148 2233 921 348 1057 2878 1267 1329 1075 3460 XP Spent 50985 | 2300 1900 200 . 2500 2700 6010 1800 1750 4800 1400 . 1200 . 2000 1200 . 1400 . 1800 . 2300 3700 . . 1485 2700 1400 . . 6440 Upgrades 103 | 4 2 1 . 4 11 13 2 1 7 1 . 3 . 1 3 . 3 . 3 . 1 2 . . 8 3 2 . . 28 Power Slot 3 | . . . . . 2 . . . . . . . . . . . . . . . . . . . . . 1 . . . Propulsion Slot 4 | 1 . . . . . . . . . . . 1 . . . . . . 1 . . . . . . 1 . . . . Utility Slot 7 | 2 . . . . . . 1 . 2 . . . . 1 . . . . . . 1 . . . . . . . . . Weapon Slot 6 | 1 2 . . . . . . . . 1 . . . . . . . . . . . 2 . . . . . . . . Core Integrity 35 | . . . . . . . . . . . . . . . . . . . . . . . . . 7 . . . . 28 Heat Dissipation 13 | . . . . . 5 8 . . . . . . . . . . . . . . . . . . . . . . . . Energy Generation 1 | . . . . . . . . . . . . . . . . . . . . . . . . . . . 1 . . . Matter Storage 5 | . . . . . 4 . . . 1 . . . . . . . . . . . . . . . . . . . . . Mass Support 3 | . . . . . . . . . . . . . . . . . . . 2 . . . . . 1 . . . . . Inventory Capacity 7 | . . . . 4 . 2 . 1 . . . . . . . . . . . . . . . . . . . . . . Sight Range 4 | . . . . . . . . . . . . 2 . . . . 2 . . . . . . . . . . . . . Ranged Accuracy 4 | . . . . . . 3 1 . . . . . . . . . . . . . . . . . . . . . . . Melee Accuracy 4 | . . . . . . . . . 4 . . . . . . . . . . . . . . . . . . . . . Hack Attack % 4 | . . . . . . . . . . . . . . . 3 . . . . . . . . . . 1 . . . . Hack Defense % 2 | . . . . . . . . . . . . . . . . . 1 . . . . . . . . 1 . . . . KI Damage % 1 | . . 1 . . . . . . . . . . . . . . . . . . . . . . . . . . . . Protomatter Created 7051 | . 249 29 . 23 229 198 474 269 333 39 . 133 . 238 235 53 . 88 138 702 280 162 . . 691 1169 709 . 54 556 Integrity Restored 18218 | . 688 87 . 268 663 844 628 303 1298 363 . 637 . 514 408 159 135 . 403 2142 552 1928 96 143 1866 3001 730 . 26 336 Core 11352 | . 688 63 . 51 590 793 431 210 1009 363 . 355 . 369 321 159 132 . 195 1091 552 733 72 143 1087 1300 412 . 15 218 Parts 6866 | . . 24 . 217 73 51 197 93 289 . . 282 . 145 87 . 3 . 208 1051 . 1195 24 . 779 1701 318 . 11 118 Protomatter Decayed 3678 | . 19 . . . 60 . 261 160 121 . . 123 . 276 88 . . . . 173 96 322 424 1 319 186 609 . . 440 Game ------ Seed CoolantFusionStabilizer Manual? 0 Play Time 04:12:51 Cumulative 232.0 hours Start 2020.09.10 @ 23:48:40 End 2020.09.11 @ 04:53:31 Sessions 1 Manual Loads 0 Difficulty Rogue Special Mode Winter2019/RPGLIKE Game No. 245 Rogue 245 Adventurer 0 Explorer 0 Win Type - Total 12 Types 8/0/3/1/0/0/0/0/0 Lore% 76 Gallery% 87 Achievement% 67 Wizard Run 0 Options --------- ASCII 0 Keyboard 1 Movement Numpad Keybinds 0 Fullscreen 1 Font 20/SmallcapsGlow Map View 66x50 Tactical HUD 1 Map Filters NONE Filters NONE Steam 1 RUN: d43cb63a-8b83-4979-ab8b-3521ee4d64b9